fUST/lending_fUST_20240118
["ID","MTS","AMOUNT","RATE_DAILY","PERIOD"]
[311989379,1705533045731,-500.0,0.00022191,2]
[311989382,1705533045743,-241.37531993,0.00022191,2]
[311989384,1705533045752,-500.0,0.00022191,2]
[311989386,1705533045762,-304.64569029,0.00022191,2]
[311989388,1705533045771,-500.0,0.00022191,2]
[311989390,1705533045780,-500.0,0.00022191,2]
[311989392,1705533045789,-11368.56,0.00022191,2]
[311989394,1705533045799,-2910.88,0.00022191,2]
[311989396,1705533045808,-665.62,0.00022191,2]
[311989398,1705533045816,-500.0,0.00022191,2]
[311989400,1705533045825,-500.0,0.00022191,2]
[311989402,1705533045834,-283.40894519,0.00022191,2]
[311989404,1705533045844,-1098.49,0.00022191,2]
[311989406,1705533045853,-733.29,0.00022191,2]
[311989408,1705533045862,-500.0,0.00022191,2]
[311989410,1705533045871,-512.24310383,0.00022191,2]
[311989412,1705533045880,-4754.79287665,0.00022191,2]
[311989414,1705533045895,-1106.05712335,0.00022191,2]
[311989416,1705533045904,-500.0,0.00022191,2]
[311989418,1705533045913,-98.14947835,0.00022191,2]
[311989425,1705533045966,-224.4532379,0.00021917,2]
[311989427,1705533045975,-269.14098949,0.00022191,2]
[311989429,1705533045987,-132.70953216,0.00022191,2]
[311989430,1705533045996,-500.0,0.00022191,2]
[311989431,1705533046005,-500.0,0.00022191,2]
[311989432,1705533046014,-500.0,0.00022191,2]
[311989433,1705533046022,-2266.77329257,0.00022191,2]
[311989448,1705533046185,-500.0,0.00021917,2]
[311989450,1705533046194,-412.98,0.00022181,3]
[311989452,1705533046205,-1665.42670743,0.00022191,2]
[311989454,1705533046214,-500.0,0.00022191,2]
[311989456,1705533046223,-3741.75,0.00022191,2]
[311989458,1705533046232,-8736.61,0.00022191,2]
[311989460,1705533046241,-4069.96,0.00022191,2]
[311989462,1705533046250,-502.99875543,0.00022191,2]
[311989464,1705533046259,-500.0,0.00022191,2]
[311989465,1705533046268,-500.0,0.00022191,2]
[311989467,1705533046277,-500.0,0.00022191,2]
[311989469,1705533046286,-500.0,0.00022191,2]
[311989471,1705533046296,-500.0,0.00022191,2]
[311989474,1705533046306,-1366.05,0.00022191,2]
[311989475,1705533046316,-500.0,0.00022191,2]
[311989477,1705533046326,-1158.92,0.00022191,2]
[311989480,1705533046335,-753.49,0.00022191,2]
[311989481,1705533046344,-504.39363086,0.00022191,2]
[311989483,1705533046353,-500.0,0.00022191,2]
[311989485,1705533046362,-500.0,0.00022191,2]
[311989487,1705533046372,-567.64811055,0.00022191,2]
[311989489,1705533046381,-500.0,0.00022191,2]
[311989491,1705533046389,-500.0,0.00022191,2]
[311989493,1705533046398,-500.0,0.00022191,2]
[311989495,1705533046407,-948.8,0.00022191,2]
[311989497,1705533046416,-500.0,0.00022191,2]
[311989499,1705533046425,-500.0,0.00022191,2]
[311989501,1705533046434,-893.21,0.00022191,2]
[311989503,1705533046443,-577.50183177,0.00022191,2]
[311989506,1705533046453,-500.0,0.00022191,2]
[311989507,1705533046462,-501.18221838,0.00022191,2]
[311989509,1705533046472,-1666.21,0.00022191,2]
[311989511,1705533046481,-500.0,0.00022191,2]
[311989514,1705533046490,-597.00803997,0.00022191,2]
[311989515,1705533046501,-500.0,0.00022191,2]
[311989517,1705533046511,-1208.58,0.00022191,2]
[311989519,1705533046520,-517.61704025,0.00022191,2]
[311989521,1705533046530,-500.0,0.00022191,2]
[311989523,1705533046538,-500.0,0.00022191,2]
[311989525,1705533046548,-503.58001946,0.00022191,2]
[311989527,1705533046558,-1003.24708738,0.00022191,2]
[311989530,1705533046567,-500.0,0.00022191,2]
[311989531,1705533046576,-500.0,0.00022191,2]
[311989533,1705533046584,-500.0,0.00022191,2]
[311989535,1705533046593,-527.57532285,0.00022191,2]
[311989537,1705533046603,-6253.4729554,0.00022221,2]
[311989539,1705533046612,-151.0,0.00022221,2]
[311989541,1705533046621,-181.82299983,0.00022228,2]
[311989543,1705533046630,-150.0,0.000223,2]
[311989545,1705533046639,-245.003184,0.000223,2]
[311989547,1705533046648,-245.003184,0.000223,2]
[311989549,1705533046657,-155.07312682,0.00022326,2]
[311989551,1705533046667,-155.0,0.00022326,2]
[311989553,1705533046679,-646.70745347,0.00022326,2]
[311989555,1705533046688,-162.57415881,0.00022326,2]
[311989557,1705533046698,-156.66129121,0.00022326,2]
[311989559,1705533046708,-1578.56465011,0.00022326,2]
[311989561,1705533046719,-407.40474853,0.00022327,2]
[311989563,1705533046729,-500.0,0.00022327,2]
[311989565,1705533046738,-500.0,0.00022327,2]
[311989567,1705533046747,-500.0,0.00022327,2]
[311989569,1705533046757,-303.66,0.00022327,2]
[311989571,1705533046766,-151.0,0.00022328,2]
[311989573,1705533046776,-544.012673,0.00022328,2]
[311989575,1705533046785,-544.012673,0.00022328,2]
[311989578,1705533046794,-151.0,0.00022328,2]
[311989580,1705533046803,-2127.490309,0.00022328,2]
[311989581,1705533046813,-2127.490309,0.00022328,2]
[311989584,1705533046824,-158.4,0.00022328,2]
[311989585,1705533046833,-500.0,0.00022328,2]
[311989587,1705533046844,-885.92,0.00022328,2]
[311989589,1705533046853,-500.0,0.00022328,2]
[311989591,1705533046862,-500.0,0.00022328,2]
[311989593,1705533046871,-500.0,0.00022328,2]
[311989596,1705533046881,-500.0,0.00022328,2]
[311989598,1705533046889,-500.0,0.00022328,2]
[311989600,1705533046898,-500.0,0.00022328,2]
[311989602,1705533046908,-500.0,0.00022328,2]
[311989604,1705533046916,-500.0,0.00022328,2]
[311989605,1705533046927,-500.0,0.00022328,2]
[311989608,1705533046937,-500.0,0.00022328,2]
[311989610,1705533046947,-500.0,0.00022328,2]
[311989611,1705533046956,-500.0,0.00022328,2]
[311989613,1705533046966,-500.0,0.00022328,2]
[311989616,1705533046976,-500.0,0.00022328,2]
[311989617,1705533046986,-500.0,0.00022328,2]
[311989619,1705533046996,-500.0,0.00022328,2]
[311989622,1705533047006,-500.0,0.00022328,2]
[311989623,1705533047015,-595.43,0.00022328,2]
[311989626,1705533047025,-500.0,0.00022328,2]
[311989628,1705533047034,-500.0,0.00022328,2]
[311989629,1705533047043,-500.0,0.00022328,2]
[311989631,1705533047053,-1370.09,0.00022328,2]
[311989633,1705533047063,-500.0,0.00022328,2]
[311989635,1705533047072,-500.0,0.00022328,2]
[311989637,1705533047081,-1561.51,0.00022328,2]
[311989639,1705533047092,-500.0,0.00022328,2]
[311989641,1705533047102,-500.0,0.00022328,2]
[311989643,1705533047114,-500.0,0.00022328,2]
[311989645,1705533047123,-500.0,0.00022328,2]
[311989647,1705533047132,-500.0,0.00022328,2]
[311989649,1705533047141,-500.0,0.00022328,2]
[311989651,1705533047150,-492.07710487,0.00022328,2]
[311989653,1705533047159,-500.0,0.00022328,2]
[311989655,1705533047170,-743.7,0.00022328,2]
[311989657,1705533047180,-500.0,0.00022328,2]
[311989659,1705533047190,-500.0,0.00022328,2]
[311989661,1705533047201,-500.0,0.00022328,2]
[311989663,1705533047210,-500.0,0.00022328,2]
[311989666,1705533047222,-762.19,0.00022328,2]
[311989667,1705533047232,-500.0,0.00022328,2]
[311989669,1705533047241,-500.0,0.00022328,2]
[311989672,1705533047251,-500.0,0.00022328,2]
[311989674,1705533047263,-500.0,0.00022328,2]
[311989675,1705533047273,-501.24,0.00022328,2]
[311989677,1705533047283,-500.0,0.00022328,2]
[311989679,1705533047294,-233.2716196,0.00022328,2]
[311989681,1705533047303,-500.0,0.00022328,2]
[311989683,1705533047313,-766.82,0.00022328,2]
[311989685,1705533047323,-305.31544076,0.00022328,2]
[311989687,1705533047331,-500.0,0.00022328,2]
[311989689,1705533047340,-11368.56,0.00022328,2]
[311989691,1705533047350,-2910.88,0.00022328,2]
[311989693,1705533047360,-665.62,0.00022328,2]
[311989695,1705533047369,-500.0,0.00022328,2]
[311989697,1705533047378,-500.0,0.00022328,2]
[311989699,1705533047387,-1098.49,0.00022328,2]
[311989701,1705533047396,-733.29,0.00022328,2]
[311989703,1705533047405,-500.0,0.00022328,2]
[311989705,1705533047413,-5860.85,0.00022328,2]
[311989707,1705533047422,-500.0,0.00022328,2]
[311989709,1705533047431,-500.0,0.00022328,2]
[311989711,1705533047440,-500.0,0.00022328,2]
[311989713,1705533047450,-500.0,0.00022328,2]
[311989715,1705533047459,-3932.2,0.00022328,2]
[311989717,1705533047468,-500.0,0.00022328,2]
[311989719,1705533047477,-3741.75,0.00022328,2]
[311989721,1705533047486,-8736.61,0.00022328,2]
[311989723,1705533047495,-4069.96,0.00022328,2]
[311989725,1705533047504,-500.0,0.00022328,2]
[311989727,1705533047512,-500.0,0.00022328,2]
[311989729,1705533047521,-500.0,0.00022328,2]
[311989731,1705533047530,-552.44366241,0.00022328,2]
[311989733,1705533047539,-597.19849256,0.00022328,2]
[311989735,1705533047548,-1366.05,0.00022328,2]
[311989737,1705533047557,-500.0,0.00022328,2]
[311989739,1705533047567,-1158.92,0.00022328,2]
[311989741,1705533047576,-753.49,0.00022328,2]
[311989743,1705533047586,-500.0,0.00022328,2]
[311989745,1705533047594,-500.0,0.00022328,2]
[311989747,1705533047603,-948.8,0.00022328,2]
[311989749,1705533047611,-500.0,0.00022328,2]
[311989751,1705533047620,-500.0,0.00022328,2]
[311989753,1705533047630,-893.21,0.00022328,2]
[311989755,1705533047638,-1666.21,0.00022328,2]
[311989757,1705533047647,-500.0,0.00022328,2]
[311989759,1705533047656,-570.46136017,0.00022328,2]
[311989761,1705533047665,-1208.58,0.00022328,2]
[311989763,1705533047674,-500.0,0.00022328,2]
[311989765,1705533047683,-500.0,0.00022328,2]
[311989767,1705533047692,-500.0,0.00022328,2]
[311989769,1705533047701,-1194.84695345,0.00022363,2]
[311989771,1705533047710,-166.666666,0.00022431,2]
[311989773,1705533047719,-544.012673,0.00022465,2]
[311989775,1705533047728,-544.012673,0.00022465,2]
[311989785,1705533047813,-151.0,0.00022465,2]
[311989787,1705533047822,-151.0,0.00022465,2]
[311989789,1705533047831,-2127.490309,0.00022465,2]
[311989791,1705533047840,-2127.490309,0.00022465,2]
[311989793,1705533047850,-500.0,0.00022465,2]
[311989794,1705533047860,-885.92,0.00022465,2]
[311989796,1705533047869,-500.0,0.00022465,2]
[311989799,1705533047879,-500.0,0.00022465,2]
[311989801,1705533047887,-500.0,0.00022465,2]
[311989803,1705533047897,-500.0,0.00022465,2]
[311989805,1705533047906,-500.0,0.00022465,2]
[311989806,1705533047915,-500.0,0.00022465,2]
[311989808,1705533047925,-500.0,0.00022465,2]
[311989810,1705533047934,-500.0,0.00022465,2]
[311989812,1705533047942,-500.0,0.00022465,2]
[311989814,1705533047951,-500.0,0.00022465,2]
[311989816,1705533047960,-500.0,0.00022465,2]
[311989818,1705533047969,-500.0,0.00022465,2]
[311989820,1705533047978,-500.0,0.00022465,2]
[311989822,1705533047987,-500.0,0.00022465,2]
[311989824,1705533047995,-505.75645169,0.00022465,2]
[311989826,1705533048004,-595.43,0.00022465,2]
[311989828,1705533048013,-500.0,0.00022465,2]
[311989830,1705533048022,-500.0,0.00022465,2]
[311989832,1705533048031,-500.0,0.00022465,2]
[311989834,1705533048040,-1370.09,0.00022465,2]
[311989836,1705533048049,-500.0,0.00022465,2]
[311989838,1705533048058,-500.0,0.00022465,2]
[311989840,1705533048067,-1561.51,0.00022465,2]
[311989842,1705533048076,-500.0,0.00022465,2]
[311989844,1705533048087,-500.0,0.00022465,2]
[311989846,1705533048104,-500.0,0.00022465,2]
[311989848,1705533048113,-500.0,0.00022465,2]
[311989850,1705533048122,-500.0,0.00022465,2]
[311989852,1705533048130,-500.0,0.00022465,2]
[311989854,1705533048139,-500.0,0.00022465,2]
[311989856,1705533048149,-743.7,0.00022465,2]
[311989858,1705533048158,-500.0,0.00022465,2]
[311989860,1705533048166,-500.0,0.00022465,2]
[311989862,1705533048175,-168.37689233,0.00022465,2]
[311989864,1705533048184,-500.0,0.00022465,2]
[311989866,1705533048194,-762.19,0.00022465,2]
[311989868,1705533048202,-500.0,0.00022465,2]
[311989870,1705533048211,-626.84555893,0.00022465,2]
[311989872,1705533048220,-500.0,0.00022465,2]
[311989874,1705533048229,-501.24,0.00022465,2]
[311989876,1705533048239,-500.0,0.00022465,2]
[311989878,1705533048248,-500.0,0.00022465,2]
[311989880,1705533048256,-500.0,0.00022465,2]
[311989882,1705533048266,-766.82,0.00022465,2]
[311989884,1705533048275,-500.0,0.00022465,2]
[311989886,1705533048284,-11368.56,0.00022465,2]
[311989888,1705533048293,-2910.88,0.00022465,2]
[311989890,1705533048302,-665.62,0.00022465,2]
[311989892,1705533048311,-500.0,0.00022465,2]
[311989894,1705533048320,-1098.49,0.00022465,2]
[311989896,1705533048329,-733.29,0.00022465,2]
[311989898,1705533048338,-5860.85,0.00022465,2]
[311989900,1705533048347,-500.0,0.00022465,2]
[311989902,1705533048357,-500.0,0.00022465,2]
[311989904,1705533048367,-500.0,0.00022465,2]
[311989906,1705533048376,-3932.2,0.00022465,2]
[311989909,1705533048385,-500.0,0.00022465,2]
[311989910,1705533048394,-3741.75,0.00022465,2]
[311989912,1705533048403,-8736.61,0.00022465,2]
[311989915,1705533048413,-4069.96,0.00022465,2]
[311989917,1705533048423,-500.0,0.00022465,2]
[311989918,1705533048433,-500.0,0.00022465,2]
[311989921,1705533048443,-355.93850853,0.00022465,2]
[311989922,1705533048453,-1366.05,0.00022465,2]
[311989924,1705533048463,-500.0,0.00022465,2]
[311989927,1705533048472,-1158.92,0.00022465,2]
[311989929,1705533048481,-753.49,0.00022465,2]
[311989931,1705533048490,-500.0,0.00022465,2]
[311989933,1705533048499,-500.0,0.00022465,2]
[311989935,1705533048508,-948.8,0.00022465,2]
[311989937,1705533048517,-500.0,0.00022465,2]
[311989939,1705533048526,-893.21,0.00022465,2]
[311989941,1705533048535,-1666.21,0.00022465,2]
[311989943,1705533048544,-500.0,0.00022465,2]
[311989945,1705533048553,-1208.58,0.00022465,2]
[311989947,1705533048562,-500.0,0.00022465,2]
[311989949,1705533048571,-500.0,0.00022465,2]
[311989951,1705533048580,-500.0,0.00022465,2]
[311989953,1705533048590,-631.21783105,0.00022578,2]
[311989955,1705533048600,-544.012673,0.00022602,2]
[311989957,1705533048609,-544.012673,0.00022602,2]
[311989959,1705533048620,-198.0,0.00022602,2]
[311989961,1705533048629,-2127.490309,0.00022602,2]
[311989963,1705533048639,-2127.490309,0.00022602,2]
[311989965,1705533048648,-2127.490309,0.00022602,2]
[311989967,1705533048657,-2127.490309,0.00022602,2]
[311989969,1705533048667,-500.0,0.00022602,2]
[311989971,1705533048676,-885.92,0.00022602,2]
[311989973,1705533048686,-500.0,0.00022602,2]
[311989975,1705533048695,-500.0,0.00022602,2]
[311989977,1705533048703,-500.0,0.00022602,2]
[311989979,1705533048713,-500.0,0.00022602,2]
[311989981,1705533048722,-500.0,0.00022602,2]
[311989983,1705533048731,-500.0,0.00022602,2]
[311989985,1705533048739,-500.0,0.00022602,2]
[311989987,1705533048748,-500.0,0.00022602,2]
[311989989,1705533048757,-500.0,0.00022602,2]
[311989991,1705533048766,-500.0,0.00022602,2]
[311989993,1705533048776,-500.0,0.00022602,2]
[311989995,1705533048785,-500.0,0.00022602,2]
[311989997,1705533048794,-511.13734653,0.00022602,2]
[311989999,1705533048802,-500.0,0.00022602,2]
[311990001,1705533048812,-595.43,0.00022602,2]
[311990003,1705533048821,-500.0,0.00022602,2]
[311990005,1705533048830,-500.0,0.00022602,2]
[311990007,1705533048839,-500.0,0.00022602,2]
[311990009,1705533048848,-1370.09,0.00022602,2]
[311990011,1705533048857,-500.0,0.00022602,2]
[311990013,1705533048866,-187.94505026,0.00022602,2]
[311990015,1705533048875,-1561.51,0.00022602,2]
[311990017,1705533048885,-500.0,0.00022602,2]
[311990019,1705533048893,-539.44145748,0.00022602,2]
[311990021,1705533048902,-500.0,0.00022602,2]
[311990023,1705533048911,-500.0,0.00022602,2]
[311990025,1705533048921,-500.0,0.00022602,2]
[311990027,1705533048930,-743.7,0.00022602,2]
[311990029,1705533048941,-762.19,0.00022602,2]
[311990031,1705533048951,-500.0,0.00022602,2]
[311990033,1705533048960,-501.24,0.00022602,2]
[311990035,1705533048969,-500.0,0.00022602,2]
[311990037,1705533048978,-500.0,0.00022602,2]
[311990039,1705533048988,-500.0,0.00022602,2]
[311990041,1705533048997,-766.82,0.00022602,2]
[311990043,1705533049007,-500.0,0.00022602,2]
[311990045,1705533049016,-11368.56,0.00022602,2]
[311990047,1705533049025,-2910.88,0.00022602,2]
[311990049,1705533049034,-665.62,0.00022602,2]
[311990051,1705533049043,-500.0,0.00022602,2]
[311990053,1705533049052,-1098.49,0.00022602,2]
[311990055,1705533049061,-733.29,0.00022602,2]
[311990057,1705533049071,-5860.85,0.00022602,2]
[311990059,1705533049080,-393.9709161,0.00022602,2]
[311990061,1705533049089,-500.0,0.00022602,2]
[311990063,1705533049101,-500.0,0.00022602,2]
[311990065,1705533049110,-3932.2,0.00022602,2]
[311990066,1705533049119,-500.0,0.00022602,2]
[311990067,1705533049128,-3741.75,0.00022602,2]
[311990068,1705533049137,-8736.61,0.00022602,2]
[311990069,1705533049146,-4069.96,0.00022602,2]
[311990070,1705533049155,-500.0,0.00022602,2]
[311990071,1705533049164,-1366.05,0.00022602,2]
[311990073,1705533049173,-500.0,0.00022602,2]
[311990075,1705533049182,-1158.92,0.00022602,2]
[311990077,1705533049191,-753.49,0.00022602,2]
[311990079,1705533049200,-472.35327518,0.00022602,2]
[311990081,1705533049209,-500.0,0.00022602,2]
[311990083,1705533049218,-948.8,0.00022602,2]
[311990085,1705533049227,-500.0,0.00022602,2]
[311990087,1705533049236,-893.21,0.00022602,2]
[311990089,1705533049246,-1666.21,0.00022602,2]
[311990091,1705533049254,-500.0,0.00022602,2]
[311990093,1705533049264,-1208.58,0.00022602,2]
[311990095,1705533049273,-500.0,0.00022602,2]
[311990097,1705533049282,-500.0,0.00022602,2]
[311990099,1705533049292,-500.0,0.00022602,2]
[311990101,1705533049301,-544.012673,0.00022739,2]
[311990103,1705533049309,-544.012673,0.00022739,2]
[311990105,1705533049318,-2127.490309,0.00022739,2]
[311990107,1705533049327,-2127.490309,0.00022739,2]
[311990108,1705533049336,-500.0,0.00022739,2]
[311990110,1705533049345,-885.92,0.00022739,2]
[311990112,1705533049354,-500.0,0.00022739,2]
[311990114,1705533049363,-500.0,0.00022739,2]
[311990116,1705533049372,-500.0,0.00022739,2]
[311990118,1705533049381,-500.0,0.00022739,2]
[311990120,1705533049390,-500.0,0.00022739,2]
[311990122,1705533049400,-500.0,0.00022739,2]
[311990124,1705533049409,-500.0,0.00022739,2]
[311990126,1705533049418,-500.0,0.00022739,2]
[311990128,1705533049427,-500.0,0.00022739,2]
[311990130,1705533049435,-500.0,0.00022739,2]
[311990132,1705533049444,-500.0,0.00022739,2]
[311990133,1705533049453,-500.0,0.00022739,2]
[311990135,1705533049463,-595.43,0.00022739,2]
[311990137,1705533049472,-404.01499033,0.00022739,2]
[311990139,1705533049481,-500.0,0.00022739,2]
[311990141,1705533049491,-1370.09,0.00022739,2]
[311990143,1705533049500,-500.0,0.00022739,2]
[311990145,1705533049509,-1561.51,0.00022739,2]
[311990147,1705533049518,-500.0,0.00022739,2]
[311990149,1705533049527,-500.0,0.00022739,2]
[311990151,1705533049536,-500.0,0.00022739,2]
[311990153,1705533049546,-743.7,0.00022739,2]
[311990155,1705533049556,-762.19,0.00022739,2]
[311990157,1705533049565,-500.0,0.00022739,2]
[311990159,1705533049574,-501.24,0.00022739,2]
[311990161,1705533049583,-500.0,0.00022739,2]
[311990163,1705533049592,-500.0,0.00022739,2]
[311990165,1705533049603,-500.0,0.00022739,2]
[311990174,1705533049679,-766.82,0.00022739,2]
[311990176,1705533049691,-500.0,0.00022739,2]
[311990178,1705533049700,-11368.56,0.00022739,2]
[311990180,1705533049709,-2910.88,0.00022739,2]
[311990182,1705533049719,-665.62,0.00022739,2]
[311990184,1705533049728,-325.17,0.00022739,2]
[311990186,1705533049737,-1098.49,0.00022739,2]
[311990188,1705533049746,-733.29,0.00022739,2]
[311990190,1705533049755,-5860.85,0.00022739,2]
[311990192,1705533049765,-500.0,0.00022739,2]
[311990194,1705533049774,-500.0,0.00022739,2]
[311990196,1705533049783,-3932.2,0.00022739,2]
[311990198,1705533049792,-3741.75,0.00022739,2]
[311990200,1705533049801,-8736.61,0.00022739,2]
[311990202,1705533049809,-4069.96,0.00022739,2]
[311990204,1705533049818,-500.0,0.00022739,2]
[311990206,1705533049827,-1366.05,0.00022739,2]
[311990207,1705533049836,-500.0,0.00022739,2]
[311990209,1705533049846,-1158.92,0.00022739,2]
[311990211,1705533049855,-753.49,0.00022739,2]
[311990213,1705533049865,-500.0,0.00022739,2]
[311990215,1705533049874,-948.8,0.00022739,2]
[311990217,1705533049883,-500.0,0.00022739,2]
[311990218,1705533049892,-893.21,0.00022739,2]
[311990220,1705533049901,-755.34327329,0.00022739,2]
[311990231,1705533049997,-910.86672671,0.00022739,2]
[311990233,1705533050007,-264.35839125,0.00022739,2]
[311990235,1705533050018,-235.64160875,0.00022739,2]
[311990237,1705533050027,-1208.58,0.00022739,2]
[311990239,1705533050037,-500.0,0.00022739,2]
[311990241,1705533050047,-500.0,0.00022739,2]
[311990243,1705533050055,-500.0,0.00022739,2]
[311990244,1705533050064,-198.957615,0.0002274,2]
[311990246,1705533050074,-198.9576151,0.0002274,2]
[311990248,1705533050083,-198.9576149,0.0002274,2]
[311990250,1705533050094,-198.9576151,0.0002274,2]
[311990252,1705533050105,-198.9576149,0.0002274,2]
[311990254,1705533050115,-397.2164978,0.0002274,2]
[311990256,1705533050124,-544.012673,0.00022876,2]
[311990258,1705533050133,-544.012673,0.00022876,2]
[311990260,1705533050144,-2127.490309,0.00022876,2]
[311990262,1705533050153,-2127.490309,0.00022876,2]
[311990264,1705533050163,-500.0,0.00022876,2]
[311990266,1705533050174,-885.92,0.00022876,2]
[311990268,1705533050184,-500.0,0.00022876,2]
[311990270,1705533050193,-500.0,0.00022876,2]
[311990272,1705533050203,-500.0,0.00022876,2]
[311990274,1705533050213,-500.0,0.00022876,2]
[311990276,1705533050222,-500.0,0.00022876,2]
[311990277,1705533050231,-500.0,0.00022876,2]
[311990279,1705533050240,-514.14647517,0.00022876,2]
[311990281,1705533050250,-500.0,0.00022876,2]
[311990283,1705533050261,-500.0,0.00022876,2]
[311990285,1705533050271,-500.0,0.00022876,2]
[311990287,1705533050281,-500.0,0.00022876,2]
[311990289,1705533050291,-500.0,0.00022876,2]
[311990291,1705533050300,-595.43,0.00022876,2]
[311990293,1705533050310,-500.0,0.00022876,2]
[311990295,1705533050320,-1370.09,0.00022876,2]
[311990297,1705533050329,-500.0,0.00022876,2]
[311990299,1705533050338,-1561.51,0.00022876,2]
[311990301,1705533050349,-500.0,0.00022876,2]
[311990303,1705533050359,-500.0,0.00022876,2]
[311990305,1705533050368,-500.0,0.00022876,2]
[311990307,1705533050378,-743.7,0.00022876,2]
[311990309,1705533050386,-762.19,0.00022876,2]
[311990311,1705533050395,-155.69835181,0.00022876,2]
[311991346,1705533372979,2000.0,0.000242,30]
[311991347,1705533373347,2000.0,0.0002421,30]
[311991348,1705533373708,2000.0,0.0002422,30]
[311991349,1705533374057,2000.0,0.0002423,30]
[311991350,1705533374248,2000.0,0.0002424,30]
[311991351,1705533374496,2000.0,0.0002425,30]
[311991352,1705533374818,2000.0,0.0002426,30]
[311991353,1705533375083,2000.0,0.0002427,30]
[311991354,1705533375336,2000.0,0.0002428,30]
[311991355,1705533375587,2000.0,0.0002429,30]
[311991356,1705533375848,2000.0,0.000243,30]
[311991357,1705533376109,2000.0,0.0002431,30]
[311991358,1705533376370,2000.0,0.0002432,30]
[311991359,1705533376620,2661.667606,0.0002433,30]
[311991370,1705533933866,233.59731,0.00017784,2]
[311991371,1705533962335,116383.6733869,0.00017784,2]
[311991373,1705534108648,24900.0,0.00017675,2]
[311991385,1705534231898,-1577.91309871,0.0001856,2]
[311991386,1705534231908,-160.86925014,0.0001856,2]
[311991387,1705534231918,-400.53090856,0.0001856,2]
[311991388,1705534231928,-323.26735776,0.00018561,2]
[311991391,1705534231937,-1031.95713312,0.00018561,2]
[311991394,1705534231947,-301.6648831,0.00018561,2]
[311991396,1705534231956,-154.98450155,0.00018562,2]
[311991399,1705534231965,-242.89725676,0.00018562,2]
[311991402,1705534231975,-875.64011299,0.00018562,2]
[311991405,1705534231983,-156.81264042,0.00018562,2]
[311991408,1705534231993,-1241.4576912,0.00018562,2]
[311991411,1705534232003,-154.98450155,0.00018563,2]
[311991414,1705534232012,-154.98450155,0.00018563,3]
[311991416,1705534232022,-154.98450155,0.00018563,2]
[311991420,1705534232031,-587.80263423,0.00018563,2]
[311991422,1705534232040,-616.22732514,0.00018564,2]
[311991426,1705534232050,-19683.9294639,0.00018564,2]
[311991429,1705534232060,-21667.37739351,0.00018564,2]
[311991432,1705534232069,-166.52197584,0.00018565,2]
[311991435,1705534232078,-260.63461917,0.00018565,2]
[311991438,1705534232087,-679.50831807,0.00018565,2]
[311991439,1705534232097,-7184.15508816,0.00018565,2]
[311992196,1705534239174,-329.24416506,0.00018559,2]
[311992197,1705534239185,-36931.7299546,0.00018564,2]
[311992199,1705534239194,-73960.03085865,0.00018565,2]
[311992201,1705534239203,-154.98450155,0.00018566,2]
[311992203,1705534239213,-158.11687987,0.00018573,2]
[311992204,1705534239222,-175.31428136,0.00018683,2]
[311992206,1705534239231,-255.0122566,0.00018776,2]